{"text_format":"3","workbook":"xlsx","n_sheets":6,"sheets":["Inicio","Detalles personales","Detalles del viaje","Hotel y actividades","Alquiler de coche","Detalles de la emergencia"],"not_rendered":{"images":19,"defined_names":10},"read":"whole","date_system":"1900"}

{"sheet":"Inicio","index":0,"n_rows":34,"n_cols":22,"rows_kept":34,"merged":[[32,1,32,3],[32,6,32,8],[32,11,32,13],[32,16,32,18],[32,21,32,23],[33,1,33,3],[33,6,33,8],[33,11,33,13],[33,16,33,18],[33,21,33,23]]}
{"$rows_empty":32}
[null,{"$f":"EntradaPersonal/RecuentoPersonal","v":{"v":1,"d":"100%"}},{"$nulls":4},{"$f":"EntradaViaje/RecuentoViaje","v":{"v":0.65,"d":"65%"}},{"$nulls":4},{"$f":"EntradaHotel/RecuentoHotel","v":{"v":0.5384615384615384,"d":"54%"}},{"$nulls":4},{"$f":"IF('Alquiler de coche'!D4=\"Sí\",EntradaAlquilerCoche/RecuentoAlquilerCoche,1)","v":{"v":0.2857142857142857,"d":"29%"}},{"$nulls":4},{"$f":"EntradaEmergencia/RecuentoEmergencia","v":{"v":0.625,"d":"63%"}}]
[null,{"$f":"TEXT(B33,\"0% \"\"Completado\"\"\")","v":"100% Completado"},{"$nulls":4},{"$f":"TEXT(G33,\"0% \"\"Completado\"\"\")","v":"65% Completado"},{"$nulls":4},{"$f":"TEXT(L33,\"0% \"\"Completado\"\"\")","v":"54% Completado"},{"$nulls":4},{"$f":"TEXT(Q33,\"0% \"\"Completado\"\"\")","v":"29% Completado"},{"$nulls":4},{"$f":"TEXT(V33,\"0% \"\"Completado\"\"\")","v":"63% Completado"}]

{"sheet":"Detalles personales","index":1,"n_rows":11,"n_cols":5,"rows_kept":11,"merged":[[4,2,5,2],[4,3,5,3],[4,4,5,4],[7,2,8,2],[7,3,8,3],[7,4,8,4],[17,1,17,4]]}
[]
[]
[{"$f":"IF(COUNTA(B4:B8)<1,\"*\",\"\")","v":""},"Nombres completos y nombre de pila",{"$f":"IF(E3=\"\",1,\"\")","v":""},"Dirección particular","987 North Fifth Street Columbus, TN 01234"]
[null,"Miguel Sánchez"]
[null,"Miriam Sánchez",{"$f":"IF(E5=\"\",1,\"\")","v":""},"Teléfono particular",3455550123]
[null,"José M. Sánchez"]
[]
[null,null,{"$f":"IF((E8=0)+(E8=\"\"),1,\"\")","v":""},"Teléfonos móviles",3455550124]
[]
[]
[{"$f":"EntradaPersonal","v":3},{"$f":"IF(A11<>RecuentoPersonal,\"Faltan detalles importantes\",\"Detalles importantes completados\")","v":"Detalles importantes completados"}]

{"sheet":"Detalles del viaje","index":2,"n_rows":18,"n_cols":6,"rows_kept":18,"merged":[[23,1,23,5]]}
[]
[]
[null,"Información sobre la salida",null,null,"Información sobre la vuelta"]
[{"$f":"IF(C4=\"\",1,\"\")","v":""},"Fecha",{"$f":"TODAY()+45","v":"2013-03-11"},{"$f":"IF(F4=\"\",1,\"\")","v":""},"Fecha",{"$f":"TODAY()+51","v":"2013-03-17"}]
[{"$f":"IF(C5=\"\",1,\"\")","v":""},"Aerolínea","Blue Yonder Airlines","","Aerolínea","Blue Yonder Airlines"]
[{"$f":"IF(C6=\"\",1,\"\")","v":""},"Número de vuelo","WS192",1,"Número de vuelo"]
[{"$f":"IF(C7=\"\",1,\"\")","v":""},"Desde","Columbus","","Desde","Seattle"]
[{"$f":"IF(C8=\"\",1,\"\")","v":""},"Hora de salida","12:30:00",1,"Hora de salida"]
[null,"Terminal y puerta de salida",null,1,"Terminal y puerta de salida"]
[{"$f":"IF(C10=\"\",1,\"\")","v":""},"Hacia","Seattle",1,"Hacia"]
[{"$f":"IF(C11=\"\",1,\"\")","v":""},"Hora de llegada","12:32:00",1,"Hora de llegada"]
[null,"Duración del vuelo","6 horas",null,"Duración del vuelo"]
[{"$f":"IF(C13=\"\",1,\"\")","v":""},"Número de asiento","A1, A2,A3",{"$f":"IF(F13=\"\",1,\"\")","v":1},"Número de asiento"]
[{"$f":"IF(C14=\"\",1,\"\")","v":""},"Número de confirmación","Lo mismo",{"$f":"IF(F14=\"\",1,\"\")","v":1},"Número de confirmación"]
[{"$f":"IF(C15=\"\",1,\"\")","v":""},"Comida","Sin restricciones",null,"Comida"]
[null,"Número de teléfono de la aerolínea",1235550234,null,"Número de teléfono de la aerolínea",1235550234]
[]
[{"$f":"EntradaViaje","v":13},{"$f":"IF(A18<>RecuentoViaje,\"Faltan detalles importantes\",\"Detalles importantes completados\")","v":"Faltan detalles importantes"}]

{"sheet":"Hotel y actividades","index":3,"n_rows":15,"n_cols":7,"rows_kept":15,"merged":[[21,1,21,6]]}
[]
[]
[null,"Estancia en hotel / Información de alojamiento",{"$nulls":3},"Información de la actividad vacacional"]
[{"$f":"IF(C4=\"\",1,\"\")","v":""},"Fecha de la reserva",{"$f":"TODAY()+45","v":"2013-03-11"},null,null,"Actividad 1","Esquí"]
["","Nombre del hotel","Alpine Ski House",null,{"$f":"IF(AND($G$4<>\"\",G5=\"\"),1,\"\")","v":1},"Fecha/Hora"]
["","Dirección del hotel","Calle Principal 245",null,{"$f":"IF(AND($G$4<>\"\",G6=\"\"),1,\"\")","v":1},"Fecha de la reserva"]
["","Número de teléfono del hotel","Seattle",null,{"$f":"IF(AND($G$4<>\"\",G7=\"\"),1,\"\")","v":1},"Número de confirmación"]
["","Día y hora de llegada",{"$f":"TODAY()+45.5","v":"2013-03-11T12:00:00"},null,null,"Actividad 2","Coho Vineyard & Winery"]
["","Día y hora de final de estancia",{"$f":"TODAY()+50.5","v":"2013-03-16T12:00:00"},null,{"$f":"IF(AND($G$8<>\"\",G9=\"\"),1,\"\")","v":1},"Fecha/Hora"]
["","Número de confirmación","CJ1234567",null,{"$f":"IF(AND($G$8<>\"\",G10=\"\"),1,\"\")","v":1},"Fecha de la reserva"]
[{"$nulls":4},{"$f":"IF(AND($G$8<>\"\",G11=\"\"),1,\"\")","v":1},"Número de confirmación"]
[{"$f":"EntradaHotel","v":7},{"$f":"IF(A12<>RecuentoHotel,\"Faltan detalles importantes\",\"Detalles importantes completados\")","v":"Faltan detalles importantes"},{"$nulls":3},"Actividad 3"]
[{"$nulls":4},{"$f":"IF(AND($G$12<>\"\",G13=\"\"),1,\"\")","v":""},"Fecha/Hora"]
[{"$nulls":4},{"$f":"IF(AND($G$12<>\"\",G14=\"\"),1,\"\")","v":""},"Fecha de la reserva"]
[{"$nulls":4},{"$f":"IF(AND($G$12<>\"\",G15=\"\"),1,\"\")","v":""},"Número de confirmación"]

{"sheet":"Alquiler de coche","index":4,"n_rows":13,"n_cols":4,"rows_kept":13,"merged":[[18,0,18,4]]}
[]
[]
[null,null,"Información de alquiler de coche"]
[null,null,"¿Va a alquilar un coche?","Sí"]
[null,{"$f":"IF(AND($D$4=\"Yes\",D5=\"\"),1,\"\")","v":""},"Fecha de la reserva",{"$f":"TODAY()+45","v":"2013-03-11"}]
[null,"","Compañía de alquiler"]
[null,"","Día y hora de recogida"]
[null,"","Día y hora de retorno"]
[null,"","Número de confirmación"]
[null,"","Tipo de vehículo","Turista"]
[null,"","Número de teléfono"]
[]
[null,{"$f":"EntradaAlquilerCoche","v":2},{"$f":"IF(B13<>RecuentoAlquilerCoche,\"Faltan detalles importantes\",\"Detalles importantes completados\")","v":"Faltan detalles importantes"}]

{"sheet":"Detalles de la emergencia","index":5,"n_rows":11,"n_cols":6,"rows_kept":11,"merged":[[3,4,4,4],[3,5,4,5],[3,6,4,6],[5,4,6,4],[5,5,6,5],[5,6,6,6],[7,5,8,5],[7,6,8,6],[16,1,16,6]]}
[]
[]
[null,"Detalles del seguro",{"$nulls":3},"Información de contacto para emergencias"]
[{"$f":"IF(C4=\"\",1,\"\")","v":""},"Compañía de seguros","Humongous Insurance",null,{"$f":"IF(G4=\"\",1,\"\")","v":1},"Nombre / Vínculo / Teléfono"]
["","Número de teléfono",1235550567]
["","Tipo de cobertura","1900-01-05",null,{"$f":"IF(G6=\"\",1,\"\")","v":1},"Nombre / Vínculo / Teléfono"]
["","Número de confirmación","1900-01-05"]
["","Fecha de compra",{"$f":"TODAY()","v":"2013-01-25"},null,null,"Nombre / Vínculo / Teléfono"]
[1,"Fechas de la cobertura"]
[]
[{"$f":"EntradaEmergencia","v":5},{"$f":"IF(A11<>RecuentoEmergencia,\"Faltan detalles importantes\",\"Detalles importantes completados\")","v":"Faltan detalles importantes"}]